Workbook

Sheet Dashboard

Sheet Applied Projections (hidden)
A1: Two Most Competitive | G1: Direct Competitors | M1: All Other Schools | S1: Binomial Enroll (1=UM Need Inverse for comp)
A2: Characteristic | B2: Parameter Estimate | C2: Dialog Input | D2: Equation Estimate | E2: Results | G2: Characteristic | H2: Parameter Estimate | I2: Dialog Input | J2: Equation Estimate | K2: Results | M2: Characteristic | N2: Parameter Estimate | O2: Dialog Input | P2: Equation Estimate | Q2: Results | S2: Characteristic | T2: Parameter Estimate | U2: Dialog Input | V2: Equation Estimate | W2: Results
A4: Female | B4: 0.13 | C4: 1 | D4: =B4*C4 -> 0.13 | E4: =(B18^D17)/(1+B18^D17) -> 0.556754315 | G4: Female | H4: 0.15 | I4: 1 | J4: =H4*I4 -> 0.15 | K4: =(H18^J17)/(1+H18^J17) -> 0.4900013398 | M4: Female | N4: 0.24 | O4: 1 | P4: =N4*O4 -> 0.24 | Q4: =(N18^P17)/(1+N18^P17) -> 0.04926609934 | S4: Female | T4: -0.22 | U4: 1 | V4: =T4*U4 -> -0.22 | W4: =(T18^V17)/(1+T18^V17) -> 0.5289675056 | AA4: 1
A5: URM | B5: 0.82 | C5: 1 | D5: =B5*C5 -> 0.82 | G5: URM | H5: 0.76 | I5: 1 | J5: =H5*I5 -> 0.76 | M5: URM | N5: 0.45 | O5: 1 | P5: =N5*O5 -> 0.45 | S5: URM | T5: -0.8 | U5: 1 | V5: =T5*U5 -> -0.8 | AA5: 1
A6: Undergraduate GPA | B6: 1.48 | C6: 3.6 | D6: 5.328 | G6: Undergraduate GPA | H6: 0.55 | I6: 3.6 | J6: 1.98 | M6: Undergraduate GPA | N6: 0.2 | O6: 3.6 | P6: 0.72 | S6: Undergraduate GPA | T6: -1.69 | U6: 3.6 | V6: -6.084 | AA6: 3.6
A7: MCAT Average | B7: 0.89 | C7: 13 | D7: 11.57 | G7: MCAT Average | H7: 0.66 | I7: 13 | J7: 8.58 | M7: MCAT Average | N7: 0.42 | O7: 13 | P7: 5.46 | S7: MCAT Average | T7: -0.5 | U7: 13 | V7: -6.5 | AA7: 13
A8: In-state Resident | B8: -1.58 | C8: 1 | D8: -1.58 | G8: In-state Resident | H8: -1.82 | I8: 1 | J8: -1.82 | M8: In-state Resident | N8: -2.04 | O8: 1 | P8: -2.04 | S8: In-state Resident | T8: 1.83 | U8: 1 | V8: 1.83 | AA8: 1
A9: Less than 10K | B9: -0.75 | C9: 0 | D9: 0 | G9: Less than 10K | H9: -1.68 | I9: 0 | J9: 0 | M9: Less than 10K | N9: -1.33 | O9: 0 | P9: 0 | S9: Less than 10K | T9: 1.05 | U9: 0 | V9: 0 | AA9: 0
A10: 10K-20K | B10: -0.75 | C10: 0 | D10: 0 | G10: 10K-20K | H10: -0.95 | I10: 0 | J10: 0 | M10: 10K-20K | N10: -1.79 | O10: 0 | P10: 0 | S10: 10K-20K | T10: 0.59 | U10: 0 | V10: 0 | AA10: 0
A11: 20K-<30K | B11: 0.04 | C11: 0 | D11: 0 | G11: 20K-<30K | H11: -0.31 | I11: 0 | J11: 0 | M11: 20K-<30K | N11: -0.05 | O11: 0 | P11: 0 | S11: 20K-<30K | T11: 0.8 | U11: 0 | V11: 0 | AA11: 0
A12: 30K-46K | B12: 1.01 | C12: 0 | D12: 0 | G12: 30K-46K | H12: 0.47 | I12: 0 | J12: 0 | M12: 30K-46K | N12: -0.23 | O12: 0 | P12: 0 | S12: 30K-46K | T12: -0.43 | U12: 0 | V12: 0 | AA12: 0
A13: Full Ride | B13: 0.23 | C13: 1 | D13: 0.23 | G13: Full Ride | H13: -0.5 | I13: 1 | J13: -0.5 | M13: Full Ride | N13: -1.55 | O13: 1 | P13: -1.55 | S13: Full Ride | T13: 0.43 | U13: 1 | V13: 0.43 | AA13: 1
A14: Other Named Scholarship | B14: -12.16 | C14: 0 | D14: 0 | G14: Other Named Scholarship | H14: -0.6 | I14: 0 | J14: 0 | M14: Other Named Scholarship | N14: -12.67 | O14: 0 | P14: 0 | S14: Other Named Scholarship | T14: 1.84 | U14: 0 | V14: 0 | AA14: 0
A15: Admissions Committee Rating | B15: 0.33 | C15: 48 | D15: 15.84 | G15: Admissions Committee Rating | H15: 0.18 | I15: 48 | J15: 8.64 | M15: Admissions Committee Rating | N15: 0.04 | O15: 48 | P15: 1.92 | S15: Admissions Committee Rating | T15: -0.21 | U15: 48 | V15: -10.08 | AA15: 48
A16: Regression Constant | B16: -32.11 | C16: 1 | D16: -32.11 | G16: Regression Constant | H16: -17.83 | I16: 1 | J16: -17.83 | M16: Regression Constant | N16: -8.16 | O16: 1 | P16: -8.16 | S16: Regression Constant | T16: 21.54 | U16: 1 | V16: 21.54
D17: =SUM(D4:D16) -> 0.228 | J17: =SUM(J4:J16) -> -0.04 | P17: =SUM(P4:P16) -> -2.96 | V17: =SUM(V4:V16) -> 0.116
A18: e | B18: 2.71828 | G18: e | H18: 2.71828 | M18: e | N18: 2.71828 | S18: e | T18: 2.71828
A21: Two Most Competitive | B21: =E4 -> 0.556754315 | C21: =1-(B21) -> 0.443245685
A22: Direct Competitors | B22: =K4 -> 0.4900013398 | C22: =1-(B22) -> 0.5099986602
A23: All Other Schools | B23: =Q4 -> 0.04926609934 | C23: =1-(B23) -> 0.9507339007
B25: Enroll Elsewhere | C25: Enroll Here
A26: Other | B26: =B23 -> 0.04926609934 | C26: =C23 -> 0.9507339007
A27: Direct Competitors | B27: =B22 -> 0.4900013398 | C27: =C22 -> 0.5099986602
A28: Two Most Competitive | B28: =B21 -> 0.556754315 | C28: =C21 -> 0.443245685
A29: Overall, Larger Set | B29: =(1-W4) -> 0.4710324944 | C29: =(1-B29) -> 0.5289675056
A31: Enroll at UM | B31: =W4 -> 0.5289675056
